bitfinex/quotes_SOLUSD_20240729
["timestamp","ask_amount","ask_price","bid_price","bid_amount"]
[1722274740219,0.93993915,185.43,185.33,0.7562119]
[1722274740397,16.5392,185.45,185.33,0.7562119]
[1722274740717,0.93976121,185.46,185.34,31.4041]
[1722274740887,16.3515,185.49,185.41,5.3934]
[1722274741494,6.2148,185.51,185.43,5.3927]
[1722274741695,6.2148,185.51,185.37,41.5927]
[1722274742017,6.2148,185.51,185.38,45.0]
[1722274742786,5.3907,185.51,185.39,1.07849558]
[1722274743013,5.3914,185.48,185.37,16.5227]
[1722274743422,5.3921,185.46,185.37,16.5227]
[1722274743718,0.27088024,185.45,185.37,16.5227]
[1722274743892,0.17,185.44,185.34,6.3341]
[1722274744087,0.27088024,185.45,185.34,6.3341]
[1722274744327,0.27088024,185.46,185.34,6.3341]
[1722274744621,6.1306,185.48,185.34,6.3341]
[1722274744915,0.27088024,185.47,185.34,31.4041]
[1722274745319,0.27088024,185.47,185.35,45.0]
[1722274745521,11.79288024,185.48,185.35,45.0]
[1722274745721,0.17,185.47,185.35,45.0]
[1722274746095,6.40148024,185.48,185.35,45.0]
[1722274746321,5.66168024,185.51,185.35,45.0]
[1722274746827,5.66168024,185.51,185.36,20.0]
[1722274747016,5.66168024,185.51,185.37,45.0]
[1722274747210,0.27088024,185.51,185.36,20.0]
[1722274747396,5.3913,185.49,185.36,20.0]
[1722274747711,0.27088024,185.51,185.36,20.0]
[1722274747900,45.27088024,185.51,185.36,20.0]
[1722274748324,5.5608,185.5,185.36,20.0]
[1722274748809,5.3911,185.49,185.36,20.0]
[1722274749014,0.17,185.48,185.36,20.0]
[1722274749325,0.44088024,185.48,185.36,20.0]
[1722274749496,0.44088024,185.48,185.35,20.0]
[1722274749822,5.3919,185.47,185.35,20.0]
[1722274750123,5.562,185.46,185.35,20.0]
[1722274750334,0.27088024,185.45,185.34,6.3341]
[1722274750639,0.44088024,185.45,185.34,6.3341]
[1722274750920,0.44088024,185.45,185.35,45.0]
[1722274751602,0.44088024,185.45,185.34,6.3341]
[1722274751908,5.83318024,185.45,185.33,16.9062119]
[1722274752230,0.17,185.45,185.33,16.9062119]
[1722274752616,0.44088024,185.45,185.33,16.9062119]
[1722274752912,5.3926,185.44,185.34,5.3954]
[1722274753107,0.27088024,185.43,185.34,5.3954]
[1722274753632,5.3926,185.44,185.35,5.3951]
[1722274753813,0.17,185.43,185.33,22.3018119]
[1722274754124,6.5668,185.44,185.33,22.3018119]
[1722274754298,5.3931,185.42,185.33,0.7562119]
[1722274754503,0.17,185.41,185.33,0.7562119]
[1722274754698,6.5668,185.39,185.33,0.7562119]
[1722274754922,45.44088024,185.38,185.33,0.7562119]
[1722274755101,5.3946,185.37,185.33,0.7562119]
[1722274755302,45.17,185.36,185.33,0.7562119]
[1722274755535,50.83578024,185.36,185.33,0.7562119]
[1722274755815,5.3952,185.35,185.33,0.7562119]
[1722274755995,0.17,185.34,185.33,0.7562119]
[1722274756198,5.3946,185.38,185.33,0.7562119]
[1722274756420,0.17,185.37,185.33,0.7562119]
[1722274757133,5.5646,185.37,185.33,0.7562119]
[1722274757317,0.27088024,185.36,185.33,0.7562119]
[1722274758019,5.66588024,185.36,185.33,0.7562119]
[1722274758225,0.17,185.35,185.33,0.7562119]
[1722274759408,5.5652,185.35,185.33,0.7562119]
[1722274760000,5.3954,185.34,185.33,0.7562119]
[1722274760330,50.5654,185.34,185.33,0.7562119]
[1722274760929,5.5654,185.34,185.33,0.7562119]
[1722274761227,30.90628024,185.34,185.33,0.7562119]
[1722274761415,91.94488024,185.34,185.33,0.7562119]
[1722274762430,21.604,185.34,185.33,0.7562119]
[1722274762739,13.4018773,185.38,185.33,0.7562119]
[1722274763033,24.39748172,185.38,185.33,0.7562119]
[1722274763420,24.12660148,185.38,185.33,0.7562119]
[1722274763624,5.3946,185.37,185.33,0.7562119]
[1722274765037,5.5649,185.36,185.33,0.7562119]
[1722274765615,16.6243,185.38,185.33,0.7562119]
[1722274765815,5.3946,185.37,185.33,0.7562119]
[1722274766002,0.17,185.38,185.33,0.7562119]
[1722274766205,5.3937,185.4,185.33,0.7562119]
[1722274766434,6.33380954,185.4,185.33,0.7562119]
[1722274766628,5.3937,185.4,185.33,0.7562119]
[1722274766837,5.3934,185.41,185.33,0.7562119]
[1722274767033,5.3939,185.4,185.33,0.7562119]
[1722274768910,6.33352394,185.42,185.33,0.7562119]
[1722274769103,5.63038398,185.46,185.37,5.3943]
[1722274769307,25.07,185.49,185.34,22.6781]
[1722274769533,5.3917,185.47,185.36,5.3946]
[1722274769718,5.3921,185.46,185.35,5.3949]
[1722274770034,5.3921,185.46,185.34,22.6781]
[1722274770237,5.3923,185.45,185.36,5.3949]
[1722274770416,5.3918,185.47,185.37,5.3946]
[1722274770810,5.392,185.46,185.36,5.3948]
[1722274771007,25.34088024,185.49,185.34,22.6781]
[1722274771211,5.3914,185.48,185.34,22.6781]
[1722274771407,5.3917,185.47,185.34,22.6781]
[1722274771632,5.3917,185.47,185.36,5.3946]
[1722274771927,5.3908,185.5,185.37,1.07875803]
[1722274772136,34.28081601,185.52,185.42,5.3931]
[1722274772343,5.3905,185.51,185.42,5.3931]
[1722274772712,5.3905,185.51,185.37,25.07]
[1722274772911,25.07,185.55,185.38,1.07850979]
[1722274772912,5.3902,185.52,185.38,1.07850979]
[1722274773145,5.3902,185.52,185.39,15.8584]
[1722274773316,5.3902,185.52,185.4,1.07842751]
[1722274773516,5.3908,185.51,185.39,15.8584]
[1722274773749,25.07,185.46,185.33,0.7562119]
[1722274773929,5.3931,185.43,185.33,0.7562119]
[1722274774237,2.09256891,185.45,185.33,0.7562119]
[1722274774238,5.3938,185.4,185.33,0.7562119]
[1722274774442,0.84900925,185.39,185.33,0.7562119]
[1722274774641,5.3934,185.42,185.33,0.7562119]
[1722274774826,1.01900925,185.41,185.33,0.7562119]
[1722274775944,0.17,185.41,185.33,0.7562119]
[1722274777147,5.3944,185.38,185.33,0.7562119]
[1722274777432,0.17,185.37,185.33,0.7562119]
[1722274777820,5.5646,185.37,185.33,0.7562119]
[1722274778021,0.84900925,185.36,185.33,0.7562119]
[1722274778236,0.17,185.37,185.33,0.7562119]
[1722274778540,25.07,185.42,185.33,0.7562119]
[1722274778541,0.84900925,185.38,185.33,0.7562119]
[1722274780930,0.17,185.37,185.33,0.7562119]
[1722274781437,5.3946,185.37,185.33,0.7562119]
[1722274781643,5.5643,185.38,185.33,0.7562119]
[1722274781818,0.17,185.38,185.33,0.7562119]
[1722274782018,45.17,185.38,185.33,0.7562119]
[1722274782231,0.84900925,185.37,185.33,0.7562119]
[1722274782440,0.17,185.36,185.33,0.7562119]
[1722274782657,0.84900925,185.35,185.33,0.7562119]
[1722274783640,0.17,185.36,185.33,0.7562119]
[1722274783848,0.17,185.37,185.33,0.7562119]
[1722274784143,5.5646,185.37,185.33,0.7562119]
[1722274784532,0.17,185.37,185.33,0.7562119]
[1722274785236,1.01900925,185.37,185.33,0.7562119]
[1722274786623,0.17,185.37,185.33,0.7562119]
[1722274786823,0.84900925,185.37,185.33,0.7562119]
[1722274787939,5.5643,185.38,185.33,0.7562119]
[1722274788456,0.17,185.38,185.33,0.7562119]
[1722274788655,0.84900925,185.37,185.33,0.7562119]
[1722274789861,0.93926404,185.39,185.33,0.7562119]
[1722274789862,0.84900925,185.36,185.33,0.7562119]
[1722274790952,0.84900925,185.38,185.33,0.7562119]
[1722274791161,0.17,185.37,185.33,0.7562119]
[1722274791341,1.01900925,185.37,185.33,0.7562119]
[1722274791545,0.17,185.37,185.33,0.7562119]
[1722274791850,1.01900925,185.37,185.33,0.7562119]
[1722274792460,0.17,185.37,185.33,0.7562119]
[1722274792636,0.17,185.38,185.33,0.7562119]
[1722274793333,0.84900925,185.37,185.33,0.7562119]
[1722274793936,0.84900925,185.38,185.33,0.7562119]
[1722274794239,0.84900925,185.38,185.33,16.9941119]
[1722274795359,0.93926404,185.39,185.33,16.9941119]
[1722274795568,1.78827329,185.39,185.33,16.9941119]
[1722274795935,2.09256891,185.45,185.33,16.9941119]
[1722274796142,0.84900925,185.44,185.33,16.9941119]
[1722274798963,6.24160925,185.44,185.33,16.9941119]
[1722274799740,0.17,185.43,185.33,16.9941119]
[1722274801161,5.5628,185.43,185.33,16.9941119]
[1722274801364,5.3935,185.41,185.33,16.9941119]
[1722274801669,0.84900925,185.4,185.33,16.9941119]
[1722274801862,0.84900925,185.39,185.33,16.9941119]
[1722274802063,2.09256891,185.42,185.33,16.9941119]
[1722274803071,1.24355966,185.42,185.33,16.9941119]
[1722274803447,2.09256891,185.42,185.33,16.9941119]
[1722274803875,7.48586891,185.42,185.33,16.9941119]
[1722274804076,1.24355966,185.42,185.33,42.0641119]
[1722274804255,1.24355966,185.42,185.34,41.4672]
[1722274804580,1.24355966,185.42,185.35,15.1823]
[1722274805447,6.24070925,185.47,185.35,15.1823]
[1722274805963,25.91900925,185.47,185.35,15.1823]
[1722274806164,46.24355966,185.46,185.35,15.1823]
[1722274806468,1.01900925,185.45,185.35,15.1823]
[1722274806642,6.41130925,185.45,185.35,15.1823]
[1722274806845,5.3926,185.44,185.35,15.1823]
[1722274807072,1.01900925,185.43,185.35,15.1823]
[1722274807262,45.17,185.43,185.35,15.1823]
[1722274807466,0.17,185.43,185.35,15.1823]
[1722274808049,1.24355966,185.46,185.36,26.14889928]
[1722274808554,1.24355966,185.46,185.36,25.07]
[1722274808862,0.84900925,185.45,185.35,15.1823]
[1722274809052,1.24355966,185.46,185.36,20.0]
[1722274809567,1.24355966,185.46,185.36,21.07866693]
[1722274810347,30.4604,185.52,185.36,20.0]
[1722274810549,31.70395966,185.52,185.37,45.0]
[1722274810880,5.3911,185.49,185.38,21.4405]
[1722274811452,25.07,185.5,185.38,21.4405]
[1722274811748,25.07,185.5,185.33,0.7562119]
[1722274811749,5.3931,185.43,185.33,0.7562119]
[1722274811961,1.01900925,185.42,185.33,0.7562119]
[1722274812154,46.01900925,185.42,185.33,0.7562119]
[1722274812370,0.84900925,185.41,185.33,0.7562119]
[1722274812566,0.17,185.42,185.33,0.7562119]
[1722274812765,1.01900925,185.43,185.33,0.7562119]
[1722274812968,0.84900925,185.42,185.33,0.7562119]
[1722274813151,0.17,185.41,185.33,0.7562119]
[1722274813358,5.3923,185.45,185.33,0.7562119]
[1722274813570,45.17,185.44,185.33,0.7562119]
[1722274813878,0.84900925,185.43,185.33,0.7562119]
[1722274814079,5.6224578,185.51,185.34,16.2813]
[1722274814376,0.84900925,185.5,185.36,6.4152]
[1722274814555,2.09256891,185.5,185.36,6.4152]
[1722274814964,5.3915,185.48,185.36,6.4152]
[1722274815149,5.392,185.46,185.36,6.4152]
[1722274815359,5.3926,185.44,185.36,6.4152]
[1722274815555,0.84900925,185.43,185.36,6.4152]
[1722274815757,5.3926,185.44,185.36,6.4152]
[1722274815758,0.84900925,185.42,185.36,6.4152]
[1722274817449,0.17,185.43,185.36,6.4152]
[1722274817653,31.31030925,185.49,185.36,6.4152]
[1722274817857,6.24040925,185.48,185.36,6.4152]
[1722274818060,0.84900925,185.48,185.36,6.4152]
[1722274818558,1.24355966,185.5,185.36,6.4152]
[1722274818758,1.24355966,185.5,185.38,16.1011]
[1722274818959,1.24355966,185.5,185.39,45.0]
[1722274820363,0.84900925,185.49,185.38,16.1011]
[1722274820755,1.24355966,185.5,185.38,16.1011]
[1722274820976,1.24355966,185.5,185.39,46.07837586]
[1722274821174,1.24355966,185.5,185.4,42.4899]
[1722274821361,1.24355966,185.5,185.41,45.0]
[1722274821560,0.84900925,185.54,185.41,45.0]
[1722274821967,6.23870925,185.54,185.41,45.0]
[1722274822353,5.39,185.53,185.41,45.0]
[1722274822557,0.84900925,185.52,185.41,45.0]
[1722274822777,5.3896,185.54,185.41,45.0]
[1722274822970,6.23860925,185.54,185.41,45.0]
[1722274823191,0.84900925,185.54,185.41,45.0]
[1722274823364,5.3891,185.56,185.41,45.0]
[1722274823679,0.84900925,185.56,185.41,45.0]
[1722274823883,5.39,185.53,185.41,45.0]
[1722274824584,0.17,185.52,185.42,21.8819]
[1722274825780,0.84900925,185.58,185.43,45.0]
[1722274825986,5.3885,185.58,185.43,46.07833362]
[1722274826191,5.3885,185.58,185.43,45.0]
[1722274826399,5.3885,185.58,185.43,46.0781052]
[1722274826571,0.84900925,185.57,185.44,15.2771]
[1722274826767,0.84900925,185.57,185.45,45.0]
[1722274827390,0.84900925,185.58,185.45,45.0]
[1722274827582,5.3894,185.55,185.44,15.2771]
[1722274827895,1.01900925,185.54,185.44,15.2771]
[1722274828284,0.17,185.54,185.44,15.2771]
[1722274828595,0.17,185.55,185.44,15.2771]
[1722274829403,0.17,185.55,185.45,1.07824941]
[1722274829574,0.84900925,185.55,185.44,15.2771]
[1722274829774,0.17,185.54,185.44,15.2771]
[1722274830077,1.01900925,185.54,185.44,15.2771]
[1722274830279,6.40870925,185.54,185.44,15.2771]
[1722274830675,0.17,185.54,185.44,15.2771]
[1722274830897,0.17,185.55,185.44,15.2771]
[1722274831672,45.17,185.56,185.44,15.2771]
[1722274832798,50.5591,185.56,185.45,1.0782443]
[1722274832977,45.17,185.56,185.45,1.0782443]
[1722274833399,5.3893,185.55,185.44,15.2771]
[1722274833608,0.17,185.54,185.44,15.2771]
[1722274833807,1.01900925,185.54,185.44,15.2771]
[1722274833978,0.17,185.54,185.44,15.2771]
[1722274834179,0.17,185.55,185.44,15.2771]
[1722274835306,0.17,185.56,185.45,45.0]
[1722274835600,0.17,185.56,185.46,1.078157]
[1722274835808,0.17,185.56,185.47,1.07815702]
[1722274836399,0.17,185.57,185.47,1.07815702]
[1722274836577,5.62325126,185.62,185.49,15.6632]
[1722274836783,6.94160925,185.67,185.51,25.07]
[1722274837093,6.94160925,185.67,185.52,45.0]
[1722274837598,6.94160925,185.67,185.49,15.6632]
[1722274837599,25.07,185.66,185.49,15.6632]
[1722274837786,0.84900925,185.65,185.5,65.0]
[1722274837989,5.3876,185.61,185.5,65.0]
[1722274838187,0.84900925,185.63,185.5,65.0]
[1722274838585,5.3873,185.62,185.5,65.0]
[1722274839310,0.17,185.61,185.5,65.0]
[1722274839479,5.387,185.64,185.51,1.07785456]
[1722274839682,6.23610925,185.63,185.5,65.0]
[1722274839902,0.17,185.62,185.5,20.0]
[1722274840103,0.84900925,185.61,185.49,15.6632]
[1722274840305,0.17,185.6,185.49,15.6632]
[1722274840498,0.84900925,185.6,185.49,15.6632]
[1722274841314,0.84900925,185.6,185.5,45.0]
[1722274841608,0.84900925,185.6,185.49,15.6632]
[1722274841797,5.3885,185.58,185.49,15.6632]
[1722274842008,0.84900925,185.57,185.49,15.6632]
[1722274842200,0.17,185.59,185.49,15.6632]
[1722274842388,1.01900925,185.59,185.49,15.6632]
[1722274842582,0.17,185.59,185.49,15.6632]
[1722274843111,5.5582,185.59,185.49,15.6632]
[1722274843498,0.17,185.59,185.49,15.6632]
[1722274844212,5.387,185.64,185.49,15.6632]
[1722274844406,45.17,185.63,185.5,45.0]
[1722274844602,0.84900925,185.64,185.5,45.0]
[1722274844603,0.84900925,185.62,185.5,45.0]
[1722274845418,1.24355966,185.65,185.51,46.14780185]
[1722274845589,1.24355966,185.65,185.52,45.0]
[1722274846315,1.24355966,185.65,185.53,20.0]
[1722274846613,1.24355966,185.65,185.54,45.0]
[1722274848684,1.24355966,185.65,185.55,6.3388]
[1722274849089,1.24355966,185.65,185.56,20.0]
[1722274849293,0.17,185.66,185.56,20.0]
[1722274849589,0.17,185.66,185.57,1.07756782]
[1722274849785,15.0859,185.68,185.57,1.07756782]
[1722274850004,0.84900925,185.71,185.57,1.07756782]
[1722274850005,6.4522,185.71,185.57,60.4475]
[1722274850207,0.84900925,185.7,185.57,60.4475]
[1722274850403,5.3853,185.69,185.57,60.4475]
[1722274850611,0.84900925,185.68,185.57,15.4475]
[1722274850993,5.3865,185.65,185.52,16.6098]
[1722274851194,0.84900925,185.64,185.52,16.6098]
[1722274851396,41.6718,185.63,185.52,16.6098]
[1722274851723,6.23640925,185.62,185.52,16.6098]
[1722274851896,0.17,185.61,185.52,16.6098]
[1722274852092,0.17,185.61,185.5,6.3385]
[1722274852415,50.5579,185.61,185.49,1.07793191]
[1722274852596,50.5579,185.61,185.48,16.4061]
[1722274852917,45.17,185.61,185.48,16.4061]
[1722274853212,0.84900925,185.6,185.48,16.4061]
[1722274853513,0.17,185.59,185.48,16.4061]
[1722274853715,6.23750925,185.58,185.48,16.4061]
[1722274853912,1.01900925,185.57,185.48,16.4061]
[1722274854788,0.84900925,185.56,185.48,16.4061]
[1722274855413,0.84900925,185.56,185.46,6.4403]
[1722274856009,0.17,185.55,185.46,6.4403]
[1722274857020,0.84900925,185.54,185.44,15.1603]
[1722274857920,1.01900925,185.55,185.44,15.1603]
[1722274858398,1.01900925,185.55,185.4,5.62667952]
[1722274858399,25.07,185.5,185.4,5.62667952]
[1722274858602,5.3922,185.46,185.32,15.1603]
[1722274858897,0.17,185.45,185.32,15.1603]
[1722274859098,1.01900925,185.45,185.32,15.1603]
[1722274859303,0.17,185.45,185.32,15.1603]
[1722274860502,0.84900925,185.53,185.33,26.90503949]
[1722274860713,23.85770925,185.54,185.36,25.07]
[1722274861025,23.85770925,185.54,185.33,26.90503949]
[1722274861026,23.0087,185.54,185.39,25.07]
[1722274861209,0.84900925,185.53,185.4,60.2346]
[1722274861796,22.8235,185.61,185.45,25.07]
[1722274862023,1.24355966,185.6,185.46,66.07793103]
[1722274862211,7.48066891,185.6,185.46,65.0]
[1722274862425,25.07,185.59,185.42,40.8898]
[1722274862724,5.3894,185.55,185.43,20.0]
[1722274862910,5.3894,185.55,185.42,40.8898]
[1722274863112,0.84900925,185.57,185.42,40.8898]
[1722274863302,5.3894,185.55,185.42,15.8198]
[1722274863502,1.01900925,185.54,185.42,15.8198]
[1722274863696,0.17,185.54,185.42,15.8198]
[1722274864798,5.39,185.53,185.42,15.8198]
[1722274865003,0.17,185.52,185.42,15.8198]
[1722274865828,0.17,185.52,185.39,6.324]
[1722274865829,5.3906,185.51,185.39,6.324]
[1722274866136,0.17,185.5,185.4,1.07854039]
[1722274866417,0.17,185.52,185.4,45.0]
[1722274866932,0.17,185.52,185.41,1.07837462]
[1722274867623,23.73355966,185.57,185.41,20.0]
[1722274867799,29.12235966,185.57,185.42,46.07818273]
[1722274868003,5.389,185.56,185.42,45.0]
[1722274868213,24.58256891,185.57,185.42,45.0]
[1722274868508,23.73355966,185.57,185.42,45.0]
[1722274868711,23.73355966,185.57,185.44,16.0566]
[1722274868904,23.73355966,185.57,185.45,45.0]
[1722274869928,0.17,185.56,185.45,45.0]
[1722274870227,5.559,185.56,185.44,16.0566]
[1722274870400,0.17,185.56,185.44,16.0566]
[1722274870606,0.84900925,185.55,185.44,16.0566]
[1722274870918,0.17,185.54,185.44,16.0566]
[1722274871434,45.0,185.56,185.44,16.0566]
[1722274871435,0.17,185.55,185.44,16.0566]
[1722274871928,5.5594,185.55,185.44,16.0566]
[1722274872124,0.17,185.55,185.44,16.0566]
[1722274872297,0.17,185.55,185.45,1.07827172]
[1722274872497,0.17,185.55,185.44,16.0566]
[1722274872922,23.73355966,185.57,185.44,16.0566]
[1722274873126,23.73355966,185.57,185.45,45.0]
[1722274873431,1.24355966,185.57,185.46,6.1298]
[1722274873732,1.24355966,185.57,185.47,45.0]
[1722274875006,1.24355966,185.57,185.48,1.0780212]
[1722274875208,27.2376,185.61,185.48,1.0780212]
[1722274875429,0.84900925,185.63,185.47,45.0]
[1722274875601,21.85,185.67,185.48,36.38925535]
[1722274875801,258.83883105,185.69,185.52,15.1413]
[1722274875998,0.93883105,185.69,185.59,28.31]
[1722274876228,6.1688,185.83,185.61,20.0]
[1722274876436,5.3828,185.78,185.62,66.24687342]
[1722274876719,0.84900925,185.82,185.63,1.07687491]
[1722274876720,0.84900925,185.77,185.63,1.07687491]
[1722274876929,6.23220925,185.77,185.63,1.07687491]
[1722274877101,5.3835,185.75,185.57,1.07710562]
[1722274877307,0.84900925,185.8,185.58,1.24710574]
[1722274877517,5.3839,185.74,185.58,21.24710574]
[1722274877835,5.3844,185.72,185.59,45.0]
[1722274878008,5.3844,185.72,185.6,1.07729563]
[1722274878327,28.31,185.77,185.6,1.07729563]
[1722274878530,2.09256891,185.76,185.6,21.07729563]
[1722274878711,14.87245966,185.75,185.55,1.077263]
[1722274878917,47.09256891,185.74,185.54,22.34852808]
[1722274879141,5.3854,185.69,185.55,1.07745106]
[1722274879430,0.17,185.68,185.55,1.07745106]
[1722274879639,5.385,185.71,185.55,1.07745106]
[1722274879808,5.555,185.7,185.55,1.07745106]
[1722274880006,5.3853,185.69,185.54,21.2711]
[1722274880228,0.17,185.68,185.55,45.0]
[1722274880533,0.17,185.68,185.55,20.0]
[1722274881304,0.17,185.69,185.55,21.0774772]
[1722274881538,45.17,185.69,185.55,21.0774772]
[1722274881712,0.17,185.69,185.55,21.0774772]
[1722274882432,5.5553,185.69,185.55,21.0774772]
[1722274882619,5.5553,185.69,185.56,45.0]
[1722274882820,0.17,185.69,185.56,45.0]
[1722274883518,50.5554,185.69,185.56,45.0]
[1722274883921,45.17,185.69,185.57,1.07747783]
[1722274884118,0.17,185.69,185.57,1.07747783]
[1722274884509,5.5553,185.69,185.57,1.07747783]
[1722274885134,5.5553,185.69,185.56,45.0]
[1722274886408,5.5553,185.69,185.57,1.07747689]
[1722274886608,0.17,185.69,185.57,1.07747689]
[1722274887830,5.5554,185.69,185.56,45.0]
[1722274889314,0.17,185.69,185.57,1.07747628]
[1722274889711,0.17,185.7,185.57,1.07747628]
[1722274890430,2.09256891,185.73,185.58,16.0652]
[1722274890641,1.24355966,185.73,185.59,91.37712111]
[1722274891018,1.24355966,185.73,185.66,22.0313]
[1722274891220,1.24355966,185.73,185.67,85.0]
[1722274891529,1.24355966,185.73,185.68,26.37650649]
[1722274891728,1.24355966,185.73,185.69,65.0]
[1722274891924,1.24355966,185.73,185.7,1.24651288]
[1722274892522,1.24355966,185.73,185.71,1.07651562]
[1722274893437,257.9,185.85,185.71,1.07651562]
[1722274893743,388.99701081,185.89,185.71,1.07651562]
[1722274893942,0.84900925,185.88,185.71,1.07651562]
[1722274894236,5.3804,185.86,185.71,1.07651562]
[1722274895432,0.17,185.85,185.71,1.07651562]
[1722274896142,5.5507,185.85,185.7,1.2464756]
[1722274896719,0.17,185.85,185.7,1.2464756]
[1722274897333,0.17,185.86,185.7,1.2464756]
[1722274897522,5.5504,185.86,185.7,1.2464756]
[1722274897722,13.91484727,185.89,185.71,41.4956]
[1722274897917,5.3796,185.89,185.72,66.24628263]
[1722274898143,15.3938,185.91,185.72,66.24628263]
[1722274898338,5.3803,185.87,185.72,66.24628263]
[1722274898543,5.3798,185.89,185.72,66.24628263]
[1722274898727,5.3801,185.87,185.72,66.24628263]
[1722274899135,5.3798,185.88,185.72,66.24628263]
[1722274899331,8.95052471,185.91,185.74,6.2304]
[1722274899523,5.3795,185.89,185.75,46.24621848]
[1722274899852,5.3799,185.88,185.75,45.0]
[1722274900926,0.17,185.87,185.75,45.0]
[1722274901535,0.17,185.88,185.75,45.0]
[1722274902042,0.17,185.89,185.75,45.0]
[1722274902550,0.17,185.89,185.76,1.07626953]
[1722274902853,0.17,185.89,185.75,45.0]
[1722274903647,5.3798,185.88,185.75,45.0]
[1722274903830,0.17,185.87,185.75,45.0]
[1722274904333,0.17,185.87,185.75,46.07629755]
[1722274904538,0.17,185.88,185.75,46.07629755]
[1722274905757,5.5498,185.88,185.75,45.0]
[1722274906130,5.3801,185.87,185.75,45.0]
[1722274906347,0.17,185.88,185.76,16.78292585]
[1722274906541,0.17,185.88,185.77,45.0]
[1722274907057,5.5498,185.88,185.76,15.7066]
[1722274907736,0.17,185.88,185.76,15.7066]
[1722274908131,5.5498,185.88,185.76,15.7066]
[1722274908445,0.17,185.88,185.76,15.7066]
[1722274908651,5.5496,185.89,185.76,15.7066]
[1722274908855,0.84900925,185.88,185.76,15.7066]
[1722274909052,0.17,185.87,185.76,15.7066]
[1722274910128,0.17,185.88,185.76,15.7066]
[1722274911056,0.17,185.89,185.76,15.7066]
[1722274911944,0.17,185.89,185.77,1.07631213]
[1722274912149,0.17,185.89,185.77,66.07631213]
[1722274912447,0.17,185.9,185.78,1.07620243]
[1722274913056,1.24355966,185.91,185.77,66.07620536]
[1722274913347,1.24355966,185.91,185.77,65.0]
[1722274913555,0.84900925,185.9,185.77,65.0]
[1722274913769,0.84900925,185.89,185.77,65.0]
[1722274914269,1.24355966,185.91,185.79,25.07]
[1722274914435,11.6945,185.94,185.8,45.0]
[1722274914628,0.84900925,185.93,185.8,45.0]
[1722274914832,0.84900925,185.94,185.81,6.0253]
[1722274915050,31.5907,185.97,185.82,45.0]
[1722274915245,0.84900925,185.96,185.82,45.0]
[1722274915554,0.84900925,185.96,185.83,16.0036]
[1722274916338,0.84900925,185.96,185.84,45.0]
[1722274916539,5.3781,185.94,185.83,16.0036]
[1722274916944,0.84900925,185.93,185.83,16.0036]
[1722274917147,0.84900925,185.92,185.83,16.0036]
[1722274917435,0.17,185.91,185.83,16.0036]
[1722274919549,45.17,185.92,185.83,16.0036]
[1722274919749,50.5486,185.92,185.83,16.0036]
[1722274919945,45.17,185.92,185.83,16.0036]
[1722274920149,0.17,185.92,185.83,16.0036]
[1722274920765,1.24355966,185.96,185.84,45.0]
[1722274921967,0.84900925,185.95,185.83,16.0036]
[1722274922170,7.47800925,185.95,185.81,6.0253]
[1722274922381,6.629,185.95,185.81,6.0253]
[1722274922538,5.3789,185.91,185.81,6.0253]
[1722274922855,7.47800925,185.95,185.81,6.0253]
[1722274922856,6.629,185.95,185.81,6.0253]
[1722274923054,5.3781,185.94,185.81,6.0253]
[1722274923253,0.17,185.93,185.81,6.0253]
[1722274924166,5.5484,185.93,185.81,6.0253]
[1722274924566,0.17,185.93,185.82,1.07602103]
[1722274925455,0.17,185.93,185.79,40.1503]
[1722274925456,25.91900925,185.93,185.79,15.0803]
[1722274925670,5.3793,185.9,185.79,15.0803]
[1722274925959,6.99448391,186.01,185.8,31.3399]
[1722274926156,283.7262119,185.98,185.81,46.07592281]
[1722274927043,0.84900925,185.97,185.81,46.07592281]